[Event "Titled Tuesday Blitz November 01 Early 2022"]
[White "Toshali, V"]
[Black "Mitrovic, Darko R"]
[WhiteFideId "5072611"]
[BlackFideId "927023"]
[WhiteElo "1973"]
[BlackElo "2150"]
[Result "0-1"]
[Round "11"]
[TimeControl "180+1"]
[Date "2022.11.02"]
[WhiteClock "0:01:12"]
[BlackClock "0:00:09"]

1. d4 {[%clk 0:03:00]}  Nf6 {[%clk 0:02:59]} 2. Nf3 {[%clk 0:03:00]}  b6 {[%clk 0:02:57]} 3. Bg5 {[%clk 0:02:59]}  h6 {[%clk 0:02:52]} 4. Bf4 {[%clk 0:02:58]}  e6 {[%clk 0:02:51]} 5. Nbd2 {[%clk 0:02:58]}  Bb7 {[%clk 0:02:50]} 6. e3 {[%clk 0:02:57]}  d5 {[%clk 0:02:50]} 7. Bd3 {[%clk 0:02:57]}  Bd6 {[%clk 0:02:50]} 8. Ne5 {[%clk 0:02:56]}  Nbd7 {[%clk 0:02:46]} 9. c3 {[%clk 0:02:52]}  Ne4 {[%clk 0:02:26]} 10. Bxe4 {[%clk 0:02:39]}  dxe4 {[%clk 0:02:25]} 11. Qh5 {[%clk 0:02:39]}  Qe7 {[%clk 0:02:11]} 12. g4 {[%clk 0:02:32]}  g6 {[%clk 0:02:01]} 13. Qh3 {[%clk 0:02:28]}  O-O-O {[%clk 0:01:55]} 14. Rg1 {[%clk 0:02:22]}  h5 {[%clk 0:01:49]} 15. Nxd7 {[%clk 0:02:14]}  Qxd7 {[%clk 0:01:43]} 16. Bxd6 {[%clk 0:02:13]}  cxd6 {[%clk 0:01:20]} 17. gxh5 {[%clk 0:02:05]}  Rxh5 {[%clk 0:01:19]} 18. Qg3 {[%clk 0:02:05]}  Rdh8 {[%clk 0:01:13]} 19. Nf1 {[%clk 0:02:04]}  Ba6 {[%clk 0:01:02]} 20. Nd2 {[%clk 0:01:58]}  Bd3 {[%clk 0:00:59]} 21. Rh1 {[%clk 0:01:56]}  d5 {[%clk 0:00:54]} 22. f3 {[%clk 0:01:55]}  Qc7 {[%clk 0:00:52]} 23. Qxc7+ {[%clk 0:01:48]}  Kxc7 {[%clk 0:00:51]} 24. fxe4 {[%clk 0:01:48]}  dxe4 {[%clk 0:00:46]} 25. Nf1 {[%clk 0:01:45]}  f5 {[%clk 0:00:35]} 26. Rg1 {[%clk 0:01:37]}  R8h6 {[%clk 0:00:31]} 27. O-O-O {[%clk 0:01:30]}  Bxf1 {[%clk 0:00:25]} 28. Rdxf1 {[%clk 0:01:27]}  Rxh2 {[%clk 0:00:24]} 29. Rd1 {[%clk 0:01:26]}  Kd6 {[%clk 0:00:22]} 30. d5 {[%clk 0:01:24]}  e5 {[%clk 0:00:18]} 31. c4 {[%clk 0:01:23]}  a5 {[%clk 0:00:15]} 32. Rg5 {[%clk 0:01:21]}  R2h5 {[%clk 0:00:13]} 33. Rg2 {[%clk 0:01:17]}  g5 {[%clk 0:00:12]} 34. Rf1 {[%clk 0:01:16]}  g4 {[%clk 0:00:12]} 35. Rgf2 {[%clk 0:01:16]}  Rf6 {[%clk 0:00:10]} 36. Rg1 {[%clk 0:01:16]}  Rg5 {[%clk 0:00:10]} 37. Kc2 {[%clk 0:01:15]}  f4 {[%clk 0:00:09]} 38. exf4 {[%clk 0:01:12]}  exf4 {[%clk 0:00:09]} 39. Rfg2 {[%clk 0:01:12]}  g3 {[%clk 0:00:09]} 40. Kd2 {[%clk 0:01:12]}  f3 {[%clk 0:00:09]} 41. Rxg3 {[%clk 0:01:12]}  Rxg3 {[%clk 0:00:08]} 42. Rxg3 {[%clk 0:01:12]}  f2 {[%clk 0:00:09]} 0-1


[Site "https://www.chess.com"]

[Event "Titled Tuesday Blitz November 01 Early 2022"]
[White "Vargas, Mauricio"]
[Black "Arbunic Castro, Giovanna"]
[WhiteFideId "4404572"]
[BlackFideId "3400549"]
[WhiteElo "2025"]
[BlackElo "1814"]
[Result "0-1"]
[Round "11"]
[TimeControl "180+1"]
[Date "2022.11.02"]
[WhiteClock "0:01:10"]
[BlackClock "0:00:08"]

1. e4 {[%clk 0:02:58]}  g6 {[%clk 0:02:58]} 2. Nc3 {[%clk 0:02:56]}  Bg7 {[%clk 0:02:57]} 3. f4 {[%clk 0:02:56]}  c5 {[%clk 0:02:56]} 4. Nf3 {[%clk 0:02:55]}  Nc6 {[%clk 0:02:56]} 5. Bb5 {[%clk 0:02:54]}  e6 {[%clk 0:02:51]} 6. Bxc6 {[%clk 0:02:53]}  bxc6 {[%clk 0:02:50]} 7. d3 {[%clk 0:02:53]}  Ne7 {[%clk 0:02:49]} 8. O-O {[%clk 0:02:52]}  Rb8 {[%clk 0:02:46]} 9. Qe1 {[%clk 0:02:46]}  f5 {[%clk 0:02:44]} 10. e5 {[%clk 0:02:41]}  O-O {[%clk 0:02:42]} 11. b3 {[%clk 0:02:41]}  Nd5 {[%clk 0:02:34]} 12. Na4 {[%clk 0:02:39]}  d6 {[%clk 0:02:29]} 13. c4 {[%clk 0:02:34]}  Nb4 {[%clk 0:02:27]} 14. Qd2 {[%clk 0:02:29]}  dxe5 {[%clk 0:02:24]} 15. Nxe5 {[%clk 0:02:26]}  Bxe5 {[%clk 0:02:22]} 16. fxe5 {[%clk 0:02:26]}  Qxd3 {[%clk 0:02:21]} 17. Qxd3 {[%clk 0:02:21]}  Nxd3 {[%clk 0:02:19]} 18. Rd1 {[%clk 0:02:20]}  Nxe5 {[%clk 0:02:13]} 19. Ba3 {[%clk 0:02:17]}  Nd7 {[%clk 0:01:45]} 20. Nxc5 {[%clk 0:02:16]}  Nxc5 {[%clk 0:01:24]} 21. Bxc5 {[%clk 0:02:16]}  Re8 {[%clk 0:01:17]} 22. Bd6 {[%clk 0:02:15]}  Rb7 {[%clk 0:01:12]} 23. Bc5 {[%clk 0:02:10]}  e5 {[%clk 0:01:09]} 24. Rd6 {[%clk 0:02:08]}  Bd7 {[%clk 0:01:07]} 25. Rad1 {[%clk 0:02:07]}  Re7 {[%clk 0:00:38]} 26. Rxc6 {[%clk 0:01:51]}  Bxc6 {[%clk 0:00:35]} 27. Bxe7 {[%clk 0:01:50]}  Rxe7 {[%clk 0:00:35]} 28. Rd8+ {[%clk 0:01:50]}  Kg7 {[%clk 0:00:34]} 29. Rd6 {[%clk 0:01:50]}  Ba8 {[%clk 0:00:32]} 30. Rd8 {[%clk 0:01:44]}  Kf7 {[%clk 0:00:28]} 31. Rxa8 {[%clk 0:01:42]}  Rd7 {[%clk 0:00:28]} 32. Rc8 {[%clk 0:01:37]}  e4 {[%clk 0:00:27]} 33. c5 {[%clk 0:01:36]}  e3 {[%clk 0:00:26]} 34. Kf1 {[%clk 0:01:35]}  f4 {[%clk 0:00:20]} 35. a4 {[%clk 0:01:33]}  g5 {[%clk 0:00:19]} 36. Ke2 {[%clk 0:01:31]}  g4 {[%clk 0:00:18]} 37. Rh8 {[%clk 0:01:29]}  Rd2+ {[%clk 0:00:17]} 38. Ke1 {[%clk 0:01:28]}  Kg7 {[%clk 0:00:15]} 39. Re8 {[%clk 0:01:25]}  Rxg2 {[%clk 0:00:13]} 40. Re7+ {[%clk 0:01:18]}  Kf6 {[%clk 0:00:12]} 41. Rxh7 {[%clk 0:01:17]}  f3 {[%clk 0:00:11]} 42. Rh6+ {[%clk 0:01:13]}  Kg5 {[%clk 0:00:10]} 43. Rh8 {[%clk 0:01:10]}  Rg1# {[%clk 0:00:08]} 0-1


[Site "https://www.chess.com"]

[Event "Titled Tuesday Blitz November 01 Early 2022"]
[White "Vifleemskaia, Svetlana"]
[Black "parintele_chess"]
[WhiteFideId "4129490"]
[WhiteElo "1929"]
[BlackElo "2225"]
[Result "1-0"]
[Round "11"]
[TimeControl "180+1"]
[Date "2022.11.02"]
[WhiteClock "0:01:04"]
[BlackClock "0:00:37"]

1. d4 {[%clk 0:02:35]}  d5 {[%clk 0:02:54]} 2. c4 {[%clk 0:02:34]}  e6 {[%clk 0:02:52]} 3. Nc3 {[%clk 0:02:33]}  a6 {[%clk 0:02:52]} 4. cxd5 {[%clk 0:02:31]}  exd5 {[%clk 0:02:53]} 5. Bf4 {[%clk 0:02:31]}  Nf6 {[%clk 0:02:52]} 6. e3 {[%clk 0:02:30]}  h6 {[%clk 0:02:46]} 7. Bd3 {[%clk 0:02:28]}  Bd6 {[%clk 0:02:46]} 8. Bg3 {[%clk 0:02:23]}  Bg4 {[%clk 0:02:44]} 9. Qc2 {[%clk 0:02:21]}  O-O {[%clk 0:02:42]} 10. Nge2 {[%clk 0:02:21]}  c5 {[%clk 0:02:37]} 11. dxc5 {[%clk 0:02:19]}  Bxc5 {[%clk 0:02:35]} 12. O-O {[%clk 0:02:19]}  Nc6 {[%clk 0:02:33]} 13. a3 {[%clk 0:02:16]}  Ba7 {[%clk 0:02:21]} 14. Rad1 {[%clk 0:02:14]}  Qa5 {[%clk 0:02:11]} 15. h3 {[%clk 0:02:12]}  Be6 {[%clk 0:02:03]} 16. Nf4 {[%clk 0:02:10]}  Rfd8 {[%clk 0:01:56]} 17. Nxe6 {[%clk 0:02:02]}  fxe6 {[%clk 0:01:57]} 18. Ra1 {[%clk 0:02:02]}  e5 {[%clk 0:01:48]} 19. b4 {[%clk 0:01:59]}  Qc7 {[%clk 0:01:48]} 20. Bf5 {[%clk 0:01:48]}  Qe7 {[%clk 0:01:44]} 21. Qb3 {[%clk 0:01:44]}  Kh8 {[%clk 0:01:35]} 22. Rad1 {[%clk 0:01:33]}  d4 {[%clk 0:01:35]} 23. Ne4 {[%clk 0:01:29]}  dxe3 {[%clk 0:01:26]} 24. fxe3 {[%clk 0:01:30]}  Nxe4 {[%clk 0:00:58]} 25. Bxe4 {[%clk 0:01:29]}  Qg5 {[%clk 0:00:58]} 26. Bf2 {[%clk 0:01:23]}  Rf8 {[%clk 0:00:58]} 27. Kh1 {[%clk 0:01:10]}  Rad8 {[%clk 0:00:53]} 28. Bg1 {[%clk 0:01:07]}  Rxf1 {[%clk 0:00:46]} 29. Rxf1 {[%clk 0:01:06]}  Rd2 {[%clk 0:00:37]} 30. Rf8# {[%clk 0:01:04]} 1-0


[Site "https://www.chess.com"]

[Event "Titled Tuesday Blitz November 01 Early 2022"]
[White "Villamayor, Buenaventura"]
[Black "Terzi, Alexei"]
[WhiteFideId "5200393"]
[BlackFideId "13505076"]
[WhiteElo "2301"]
[BlackElo "2172"]
[Result "1/2-1/2"]
[Round "11"]
[TimeControl "180+1"]
[Date "2022.11.02"]
[WhiteClock "0:01:22"]
[BlackClock "0:00:20"]

1. e4 {[%clk 0:03:00]}  c5 {[%clk 0:03:00]} 2. c3 {[%clk 0:03:00]}  Nf6 {[%clk 0:02:59]} 3. e5 {[%clk 0:02:59]}  Nd5 {[%clk 0:03:00]} 4. d4 {[%clk 0:02:59]}  cxd4 {[%clk 0:02:59]} 5. Nf3 {[%clk 0:02:59]}  Nc6 {[%clk 0:02:58]} 6. cxd4 {[%clk 0:02:57]}  d6 {[%clk 0:02:58]} 7. Bc4 {[%clk 0:02:57]}  Nb6 {[%clk 0:02:58]} 8. Bb5 {[%clk 0:02:56]}  dxe5 {[%clk 0:02:43]} 9. Nxe5 {[%clk 0:02:57]}  Bd7 {[%clk 0:02:41]} 10. Nxd7 {[%clk 0:02:57]}  Qxd7 {[%clk 0:02:40]} 11. Nc3 {[%clk 0:02:58]}  a6 {[%clk 0:02:31]} 12. Bxc6 {[%clk 0:02:55]}  Qxc6 {[%clk 0:02:31]} 13. O-O {[%clk 0:02:55]}  e6 {[%clk 0:02:29]} 14. Qg4 {[%clk 0:02:53]}  Nd5 {[%clk 0:02:06]} 15. Bd2 {[%clk 0:02:45]}  Nf6 {[%clk 0:02:03]} 16. Qe2 {[%clk 0:02:42]}  Be7 {[%clk 0:02:02]} 17. Rac1 {[%clk 0:02:42]}  Qd7 {[%clk 0:01:57]} 18. Rfd1 {[%clk 0:02:39]}  O-O {[%clk 0:01:57]} 19. Bf4 {[%clk 0:02:38]}  Rac8 {[%clk 0:01:53]} 20. h3 {[%clk 0:02:33]}  Rfd8 {[%clk 0:01:49]} 21. Be5 {[%clk 0:02:32]}  b5 {[%clk 0:01:43]} 22. Ne4 {[%clk 0:02:28]}  Nxe4 {[%clk 0:01:40]} 23. Qxe4 {[%clk 0:02:29]}  Qd5 {[%clk 0:01:25]} 24. Qxd5 {[%clk 0:02:13]}  exd5 {[%clk 0:01:24]} 25. Kf1 {[%clk 0:02:11]}  f6 {[%clk 0:01:23]} 26. Bf4 {[%clk 0:02:11]}  Kf7 {[%clk 0:01:23]} 27. Rxc8 {[%clk 0:02:08]}  Rxc8 {[%clk 0:01:23]} 28. Rc1 {[%clk 0:02:09]}  Rc4 {[%clk 0:01:08]} 29. Be3 {[%clk 0:01:59]}  Ke6 {[%clk 0:01:08]} 30. Ke2 {[%clk 0:01:58]}  Bd8 {[%clk 0:01:04]} 31. Kd3 {[%clk 0:01:51]}  Bb6 {[%clk 0:00:58]} 32. Re1 {[%clk 0:01:51]}  Kd7 {[%clk 0:00:57]} 33. b3 {[%clk 0:01:51]}  Rc6 {[%clk 0:00:57]} 34. Bd2 {[%clk 0:01:49]}  h5 {[%clk 0:00:55]} 35. Bb4 {[%clk 0:01:49]}  Re6 {[%clk 0:00:54]} 36. Rxe6 {[%clk 0:01:48]}  Kxe6 {[%clk 0:00:55]} 37. Bc5 {[%clk 0:01:49]}  Bc7 {[%clk 0:00:55]} 38. Bf8 {[%clk 0:01:44]}  g5 {[%clk 0:00:55]} 39. g4 {[%clk 0:01:42]}  hxg4 {[%clk 0:00:46]} 40. hxg4 {[%clk 0:01:43]}  f5 {[%clk 0:00:40]} 41. f3 {[%clk 0:01:42]}  fxg4 {[%clk 0:00:38]} 42. fxg4 {[%clk 0:01:43]}  Bf4 {[%clk 0:00:38]} 43. Bg7 {[%clk 0:01:43]}  Kf7 {[%clk 0:00:37]} 44. Bh8 {[%clk 0:01:28]}  Bd6 {[%clk 0:00:24]} 45. a4 {[%clk 0:01:27]}  bxa4 {[%clk 0:00:24]} 46. bxa4 {[%clk 0:01:28]}  Bc7 {[%clk 0:00:24]} 47. Kc3 {[%clk 0:01:23]}  Bd6 {[%clk 0:00:22]} 48. Kd3 {[%clk 0:01:23]}  Ke6 {[%clk 0:00:21]} 49. Bg7 {[%clk 0:01:23]}  Kf7 {[%clk 0:00:20]} 50. Bh8 {[%clk 0:01:22]} 1/2-1/2


[Site "https://www.chess.com"]

[Event "Titled Tuesday Blitz November 01 Early 2022"]
[White "Warchol, Kamil"]
[Black "Korelskiy, Egor"]
[WhiteFideId "21858241"]
[BlackFideId "34329064"]
[WhiteElo "2001"]
[BlackElo "2053"]
[Result "0-1"]
[Round "11"]
[TimeControl "180+1"]
[Date "2022.11.02"]
[WhiteClock "0:00:03"]
[BlackClock "0:00:18"]

1. e4 {[%clk 0:02:49]}  c5 {[%clk 0:02:59]} 2. Nf3 {[%clk 0:02:47]}  e6 {[%clk 0:02:59]} 3. d4 {[%clk 0:02:47]}  cxd4 {[%clk 0:02:59]} 4. Nxd4 {[%clk 0:02:48]}  a6 {[%clk 0:03:00]} 5. c4 {[%clk 0:02:46]}  Nf6 {[%clk 0:02:59]} 6. Nc3 {[%clk 0:02:43]}  Qc7 {[%clk 0:03:00]} 7. Bd3 {[%clk 0:02:33]}  Nc6 {[%clk 0:02:59]} 8. Nb3 {[%clk 0:02:29]}  Ne5 {[%clk 0:02:58]} 9. O-O {[%clk 0:02:24]}  Nxd3 {[%clk 0:02:54]} 10. Qxd3 {[%clk 0:02:19]}  d6 {[%clk 0:02:51]} 11. Bf4 {[%clk 0:02:16]}  Be7 {[%clk 0:02:46]} 12. Rac1 {[%clk 0:02:01]}  O-O {[%clk 0:02:46]} 13. c5 {[%clk 0:02:00]}  e5 {[%clk 0:02:40]} 14. Bg5 {[%clk 0:01:59]}  Be6 {[%clk 0:02:15]} 15. Bxf6 {[%clk 0:01:35]}  gxf6 {[%clk 0:02:12]} 16. Nd5 {[%clk 0:00:55]}  Bxd5 {[%clk 0:02:11]} 17. Qxd5 {[%clk 0:00:55]}  dxc5 {[%clk 0:02:11]} 18. Nxc5 {[%clk 0:00:55]}  Rac8 {[%clk 0:01:28]} 19. Nb3 {[%clk 0:00:42]}  Qb6 {[%clk 0:01:19]} 20. Qd3 {[%clk 0:00:33]}  Kh8 {[%clk 0:01:02]} 21. Qf3 {[%clk 0:00:27]}  a5 {[%clk 0:00:57]} 22. Qe3 {[%clk 0:00:13]}  Qb5 {[%clk 0:00:51]} 23. Qd2 {[%clk 0:00:03]}  a4 {[%clk 0:00:46]} 24. Na1 {[%clk 0:00:03]}  Rcd8 {[%clk 0:00:27]} 25. Qc2 {[%clk 0:00:03]}  Kg7 {[%clk 0:00:22]} 26. b3 {[%clk 0:00:03]}  a3 {[%clk 0:00:20]} 27. Qc4 {[%clk 0:00:02]}  Qb6 {[%clk 0:00:20]} 28. Qc2 {[%clk 0:00:02]}  Rd4 {[%clk 0:00:19]} 29. Rfd1 {[%clk 0:00:01]}  Rfd8 {[%clk 0:00:19]} 30. Rxd4 {[%clk 0:00:02]}  Qxd4 {[%clk 0:00:19]} 31. Rd1 {[%clk 0:00:03]}  Qxd1+ {[%clk 0:00:18]} 0-1


[Site "https://www.chess.com"]

[Event "Titled Tuesday Blitz November 01 Early 2022"]
[White "Weetik, Vjacheslav"]
[Black "Gireman, Ja"]
[WhiteFideId "4153472"]
[BlackFideId "5043794"]
[WhiteElo "2469"]
[BlackElo "2153"]
[Result "1-0"]
[Round "11"]
[TimeControl "180+1"]
[Date "2022.11.01"]
[WhiteClock "0:00:05"]
[BlackClock "0:00:22"]

1. d4 {[%clk 0:02:59]}  Nf6 {[%clk 0:02:59]} 2. c4 {[%clk 0:02:58]}  g6 {[%clk 0:02:59]} 3. Nc3 {[%clk 0:02:57]}  d5 {[%clk 0:02:59]} 4. cxd5 {[%clk 0:02:56]}  Nxd5 {[%clk 0:03:00]} 5. e4 {[%clk 0:02:57]}  Nxc3 {[%clk 0:03:01]} 6. bxc3 {[%clk 0:02:57]}  Bg7 {[%clk 0:03:02]} 7. Bg5 {[%clk 0:02:58]}  c5 {[%clk 0:03:01]} 8. Rc1 {[%clk 0:02:58]}  Qa5 {[%clk 0:02:58]} 9. Qd2 {[%clk 0:02:58]}  cxd4 {[%clk 0:02:50]} 10. cxd4 {[%clk 0:02:57]}  Qxd2+ {[%clk 0:02:51]} 11. Kxd2 {[%clk 0:02:58]}  Bd7 {[%clk 0:02:45]} 12. Nf3 {[%clk 0:02:55]}  h6 {[%clk 0:02:41]} 13. Be3 {[%clk 0:02:33]}  O-O {[%clk 0:02:39]} 14. Bd3 {[%clk 0:02:21]}  Rd8 {[%clk 0:02:35]} 15. h3 {[%clk 0:02:18]}  e6 {[%clk 0:02:32]} 16. Rc7 {[%clk 0:01:23]}  Bc6 {[%clk 0:02:24]} 17. Rb1 {[%clk 0:01:21]}  a5 {[%clk 0:02:07]} 18. Ke2 {[%clk 0:01:00]}  a4 {[%clk 0:01:59]} 19. Ne5 {[%clk 0:00:55]}  Bxe5 {[%clk 0:01:49]} 20. dxe5 {[%clk 0:00:56]}  Na6 {[%clk 0:01:49]} 21. Bxa6 {[%clk 0:00:48]}  Rxa6 {[%clk 0:01:50]} 22. f3 {[%clk 0:00:45]}  Ra5 {[%clk 0:01:34]} 23. Bxh6 {[%clk 0:00:32]}  Rxe5 {[%clk 0:01:33]} 24. h4 {[%clk 0:00:25]}  Rc5 {[%clk 0:01:30]} 25. Rb2 {[%clk 0:00:21]}  Bb5+ {[%clk 0:01:27]} 26. Rxb5 {[%clk 0:00:21]}  Rxc7 {[%clk 0:01:28]} 27. Bg5 {[%clk 0:00:19]}  Rc2+ {[%clk 0:01:27]} 28. Ke3 {[%clk 0:00:19]}  Rd7 {[%clk 0:01:28]} 29. Bf6 {[%clk 0:00:18]}  Rc8 {[%clk 0:01:22]} 30. Ra5 {[%clk 0:00:17]}  Rdc7 {[%clk 0:01:07]} 31. Rxa4 {[%clk 0:00:14]}  Rc2 {[%clk 0:01:08]} 32. g4 {[%clk 0:00:13]}  R2c5 {[%clk 0:01:06]} 33. Kf4 {[%clk 0:00:12]}  Kf8 {[%clk 0:00:59]} 34. Ra7 {[%clk 0:00:10]}  Rb5 {[%clk 0:00:59]} 35. a4 {[%clk 0:00:09]}  Rb3 {[%clk 0:00:57]} 36. h5 {[%clk 0:00:08]}  gxh5 {[%clk 0:00:57]} 37. gxh5 {[%clk 0:00:09]}  Rb1 {[%clk 0:00:50]} 38. h6 {[%clk 0:00:07]}  Kg8 {[%clk 0:00:50]} 39. Ra5 {[%clk 0:00:06]}  Kh7 {[%clk 0:00:50]} 40. Bg7 {[%clk 0:00:03]}  Rg1 {[%clk 0:00:46]} 41. Ra7 {[%clk 0:00:01]}  Rb1 {[%clk 0:00:45]} 42. Ke5 {[%clk 0:00:02]}  Rc3 {[%clk 0:00:44]} 43. f4 {[%clk 0:00:02]}  Kg6 {[%clk 0:00:43]} 44. Ra8 {[%clk 0:00:02]}  Rc5+ {[%clk 0:00:32]} 45. Kd6 {[%clk 0:00:02]}  Rc4 {[%clk 0:00:32]} 46. Ke5 {[%clk 0:00:02]}  Rbb4 {[%clk 0:00:31]} 47. f5+ {[%clk 0:00:02]}  Kg5 {[%clk 0:00:25]} 48. Kd6 {[%clk 0:00:01]}  Rc7 {[%clk 0:00:16]} 49. Kxc7 {[%clk 0:00:01]}  Rxe4 {[%clk 0:00:16]} 50. h7 {[%clk 0:00:02]}  Rc4+ {[%clk 0:00:16]} 51. Kb6 {[%clk 0:00:02]}  exf5 {[%clk 0:00:17]} 52. h8=Q {[%clk 0:00:02]}  f4 {[%clk 0:00:18]} 53. Ka7 {[%clk 0:00:03]}  Kg4 {[%clk 0:00:19]} 54. Be5 {[%clk 0:00:03]}  Rxa4+ {[%clk 0:00:19]} 55. Kb8 {[%clk 0:00:03]}  Re4 {[%clk 0:00:20]} 56. Qg7+ {[%clk 0:00:04]}  Kf5 {[%clk 0:00:21]} 57. Ra3 {[%clk 0:00:04]}  Rxe5 {[%clk 0:00:21]} 58. Qxf7+ {[%clk 0:00:05]}  Ke4 {[%clk 0:00:21]} 59. Qxb7+ {[%clk 0:00:05]}  Rd5 {[%clk 0:00:21]} 60. Ra5 {[%clk 0:00:05]}  Ke5 {[%clk 0:00:22]} 61. Qxd5+ {[%clk 0:00:05]} 1-0


[Site "https://www.chess.com"]

[Event "Titled Tuesday Blitz November 01 Early 2022"]
[White "Wessendorf, Thomas, Dr."]
[Black "Devaev, Alexander"]
[WhiteFideId "4604270"]
[BlackFideId "4169395"]
[WhiteElo "2280"]
[BlackElo "2225"]
[Result "0-1"]
[Round "11"]
[TimeControl "180+1"]
[Date "2022.11.02"]
[WhiteClock "0:00:01"]
[BlackClock "0:00:13"]

1. e4 {[%clk 0:02:59]}  c6 {[%clk 0:02:59]} 2. d3 {[%clk 0:02:56]}  d5 {[%clk 0:03:00]} 3. Nd2 {[%clk 0:02:56]}  e5 {[%clk 0:03:00]} 4. Ngf3 {[%clk 0:02:55]}  Nd7 {[%clk 0:02:57]} 5. d4 {[%clk 0:02:54]}  exd4 {[%clk 0:02:55]} 6. exd5 {[%clk 0:02:54]}  cxd5 {[%clk 0:02:49]} 7. Nb3 {[%clk 0:02:51]}  Ngf6 {[%clk 0:02:49]} 8. Nbxd4 {[%clk 0:02:43]}  Bd6 {[%clk 0:02:47]} 9. Bd3 {[%clk 0:02:43]}  O-O {[%clk 0:02:47]} 10. O-O {[%clk 0:02:42]}  a6 {[%clk 0:02:46]} 11. Bg5 {[%clk 0:02:39]}  Qc7 {[%clk 0:02:46]} 12. c3 {[%clk 0:02:36]}  h6 {[%clk 0:02:44]} 13. Bh4 {[%clk 0:02:34]}  Ng4 {[%clk 0:01:50]} 14. Bg3 {[%clk 0:02:25]}  Nge5 {[%clk 0:01:51]} 15. Nf5 {[%clk 0:02:18]}  Nxf3+ {[%clk 0:01:44]} 16. Qxf3 {[%clk 0:02:17]}  Bxg3 {[%clk 0:01:44]} 17. fxg3 {[%clk 0:02:00]}  Ne5 {[%clk 0:01:40]} 18. Qe3 {[%clk 0:01:46]}  Bxf5 {[%clk 0:01:25]} 19. Bxf5 {[%clk 0:01:37]}  Rfe8 {[%clk 0:01:20]} 20. Rae1 {[%clk 0:01:29]}  Rad8 {[%clk 0:01:19]} 21. Bb1 {[%clk 0:01:22]}  Qd7 {[%clk 0:01:04]} 22. Qd4 {[%clk 0:01:16]}  Nc6 {[%clk 0:01:01]} 23. Qd3 {[%clk 0:01:14]}  g6 {[%clk 0:01:01]} 24. h3 {[%clk 0:01:05]}  Qd6 {[%clk 0:00:59]} 25. Rd1 {[%clk 0:00:56]}  Ne5 {[%clk 0:00:51]} 26. Qd4 {[%clk 0:00:53]}  Nc4 {[%clk 0:00:49]} 27. Rf2 {[%clk 0:00:33]}  Qxg3 {[%clk 0:00:43]} 28. Rdf1 {[%clk 0:00:28]}  Ne5 {[%clk 0:00:42]} 29. Rf4 {[%clk 0:00:18]}  Re7 {[%clk 0:00:38]} 30. R1f2 {[%clk 0:00:15]}  Rd6 {[%clk 0:00:38]} 31. h4 {[%clk 0:00:15]}  Ng4 {[%clk 0:00:31]} 32. Rxg4 {[%clk 0:00:13]}  Re1+ {[%clk 0:00:32]} 33. Rf1 {[%clk 0:00:13]}  Rxf1+ {[%clk 0:00:29]} 34. Kxf1 {[%clk 0:00:14]}  Rf6+ {[%clk 0:00:30]} 35. Kg1 {[%clk 0:00:12]}  Qe1+ {[%clk 0:00:30]} 36. Kh2 {[%clk 0:00:12]}  Qxb1 {[%clk 0:00:30]} 37. Qxf6 {[%clk 0:00:12]}  Qd1 {[%clk 0:00:25]} 38. Rg3 {[%clk 0:00:11]}  Qe2 {[%clk 0:00:21]} 39. b4 {[%clk 0:00:10]}  Qe4 {[%clk 0:00:20]} 40. h5 {[%clk 0:00:09]}  g5 {[%clk 0:00:20]} 41. Qxh6 {[%clk 0:00:09]}  Qh4+ {[%clk 0:00:20]} 42. Rh3 {[%clk 0:00:09]}  Qf4+ {[%clk 0:00:20]} 43. Kh1 {[%clk 0:00:08]}  Qf1+ {[%clk 0:00:21]} 44. Kh2 {[%clk 0:00:08]}  Qf4+ {[%clk 0:00:21]} 45. Rg3 {[%clk 0:00:06]}  Qh4+ {[%clk 0:00:21]} 46. Kg1 {[%clk 0:00:06]}  Qxg3 {[%clk 0:00:22]} 47. Qf6 {[%clk 0:00:06]}  Qe3+ {[%clk 0:00:21]} 48. Kh1 {[%clk 0:00:06]}  Qe1+ {[%clk 0:00:19]} 49. Kh2 {[%clk 0:00:05]}  Qh4+ {[%clk 0:00:19]} 50. Kg1 {[%clk 0:00:05]}  Qxh5 {[%clk 0:00:20]} 51. Qd8+ {[%clk 0:00:05]}  Kg7 {[%clk 0:00:20]} 52. Qxd5 {[%clk 0:00:05]}  Qe2 {[%clk 0:00:18]} 53. g3 {[%clk 0:00:03]}  Qe3+ {[%clk 0:00:18]} 54. Kg2 {[%clk 0:00:03]}  Qe2+ {[%clk 0:00:18]} 55. Kh3 {[%clk 0:00:03]}  g4+ {[%clk 0:00:18]} 56. Kh4 {[%clk 0:00:03]}  f6 {[%clk 0:00:12]} 57. Qd7+ {[%clk 0:00:03]}  Kh6 {[%clk 0:00:12]} 58. Qxg4 {[%clk 0:00:02]}  Qh2+ {[%clk 0:00:11]} 59. Qh3 {[%clk 0:00:02]}  Qxa2 {[%clk 0:00:12]} 60. Kg4+ {[%clk 0:00:02]}  Kg7 {[%clk 0:00:12]} 61. Qh4 {[%clk 0:00:01]}  Qe6+ {[%clk 0:00:13]} 62. Kf4 {[%clk 0:00:01]}  Qe5+ {[%clk 0:00:13]} 63. Kf3 {[%clk 0:00:01]}  Qxc3+ {[%clk 0:00:14]} 64. Kg4 {[%clk 0:00:01]}  Qc8+ {[%clk 0:00:13]} 0-1


[Site "https://www.chess.com"]